[Event "IIFL Wealth 4th Mumbai Open"]
[Site "Mumbai"]
[Date "2018.12.30"]
[Round "1"]
[White "Sai, Mahati A"]
[Black "Patil, Ketan"]
[Result "1-0"]
[ECO "D35"]
[WhiteElo "1267"]
[BlackElo "1767"]
[Annotator "NA"]
[PlyCount "149"]
[EventDate "2018.12.30"]
[EventType "swiss"]
[EventCountry "IND"]
[SourceTitle "playchess.com"]
[Source "ChessBase"]
[SourceQuality "1"]
[TimeControl "40/5400+30:1800+30"]

1. d4 {[%emt 0:00:00]} d5 {[%emt 0:25:03]} 2. c4 {[%emt 0:00:00]} e6 {[%emt 0:01:06]} 3. cxd5 {[%emt 0:00:00]} exd5 {[%emt 0:00:14]} 4. Nc3 {[%emt 0:00:06]} Nf6 {[%emt 0:00:23]} 5. Bg5 {[%emt 0:00:13]} Be7 {[%emt 0:00:25]} 6. Nf3 {[%emt 0:00:11]} c6 {[%emt 0:00:44]} 7. e3 {[%emt 0:03:16]} Bf5 {[%emt 0:01:48]} 8. Bd3 {[%emt 0:01:10]} Bxd3 {[%emt 0:00:59]} 9. Qxd3 {[%emt 0:00:07]} Nbd7 {[%emt 0:00:11]} 10. O-O {[%emt 0:00:46]} O-O {[%emt 0:01:51]} 11. Bxf6 {[%emt 0:04:59]} Bxf6 {[%emt 0:05:15]} 12. b4 {[%emt 0:01:25]} a6 {[%emt 0:02:15]} 13. a4 {[%emt 0:01:37]} b5 {[%emt 0:06:01]} 14. a5 {[%emt 0:07:31]} Be7 {[%emt 0:02:05]} 15. Na2 {[%emt 0:01:40]} Bd6 {[%emt 0:01:54]} 16. Rac1 {[%emt 0:02:21]} Rc8 {[%emt 0:06:06]} 17. Rc2 {[%emt 0:01:52]} Qe7 {[%emt 0:00:38]} 18. Qb3 {[%emt 0:02:41]} Rc7 {[%emt 0:02:37]} 19. Rfc1 {[%emt 0:04:03]} Rfc8 {[%emt 0:00:40]} 20. Re1 {[%emt 0:11:13]} Nf6 {[%emt 0:03:29]} 21. Nd2 {[%emt 0:07:25]} Ne4 {[%emt 0:09:22]} 22. Nxe4 {[%emt 0:01:59]} Qxe4 {[%emt 0:02:49]} 23. Rce2 {[%emt 0:03:28]} Re8 {[%emt 0:06:19]} 24. Qc2 {[%emt 0:08:19]} f5 {[%emt 0:09:59]} 25. Qxe4 {[%emt 0:04:04]} Rxe4 {[%emt 0:03:53]} 26. f3 {[%emt 0:02:05]} Re8 {[%emt 0:00:32]} 27. Rc2 {[%emt 0:05:11]} Kf7 {[%emt 0:01:14]} 28. Kf2 {[%emt 0:01:21]} h5 {[%emt 0:00:44]} 29. Rec1 {[%emt 0:03:38]} Rec8 {[%emt 0:01:45]} 30. h3 {[%emt 0:03:22]} h4 {[%emt 0:00:24]} 31. Ke2 {[%emt 0:00:53]} Ke6 {[%emt 0:00:49]} 32. Kd3 {[%emt 0:00:53]} g5 {[%emt 0:01:40]} 33. e4 {[%emt 0:02:44]} fxe4+ {[%emt 0:00:39]} 34. fxe4 {[%emt 0:00:15]} dxe4+ {[%emt 0:01:33]} 35. Kxe4 {[%emt 0:00:16]} Bf4 {[%emt 0:01:09]} 36. Rxc6+ {[%emt 0:03:14]} Rxc6 {[%emt 0:00:38]} 37. Rxc6+ {[%emt 0:00:05]} Rxc6 {[%emt 0:00:04]} 38. d5+ {[%emt 0:00:09]} Kd6 {[%emt 0:00:07]} 39. dxc6 {[%emt 0:00:11]} Kxc6 {[%emt 0:00:37]} 40. Nc3 {[%emt 0:00:00]} Bd2 {[%emt 0:00:00]} 41. Nd5 {[%emt 0:03:27]} Kd6 {[%emt 0:02:48]} 42. Kd4 {[%emt 0:01:46]} Be1 {[%emt 0:02:18]} 43. Ke4 {[%emt 0:00:50]} Bg3 {[%emt 0:05:34]} 44. Kd4 {[%emt 0:01:14]} Be5+ {[%emt 0:00:38]} 45. Ke4 {[%emt 0:00:30]} Ke6 {[%emt 0:01:52]} 46. Nb6 {[%emt 0:01:12]} Bc3 {[%emt 0:02:08]} 47. Nd5 {[%emt 0:00:21]} Be5 {[%emt 0:02:52]} 48. Nb6 Bg7 {[%emt 0:01:12]} 49. Nd5 {[%emt 0:00:36]} Kd6 {[%emt 0:02:17]} 50. Ne3 {[%emt 0:00:32]} Bc3 {[%emt 0:03:02]} 51. Nd5 {[%emt 0:00:09]} Be1 {[%emt 0:00:29]} 52. Kd4 {[%emt 0:00:38]} Bf2+ {[%emt 0:01:17]} 53. Ke4 {[%emt 0:00:09]} Bg1 {[%emt 0:00:36]} 54. Nc3 {[%emt 0:00:59]} Ke6 {[%emt 0:03:01]} 55. Nd5 {[%emt 0:00:21]} Bh2 {[%emt 0:00:53]} 56. Nb6 {[%emt 0:00:48]} Bc7 {[%emt 0:02:02]} 57. Nd5 {[%emt 0:00:15]} Bd8 {[%emt 0:00:13]} 58. Ne3 {[%emt 0:00:28]} Bf6 {[%emt 0:02:46]} 59. Nd5 {[%emt 0:00:10]} Be5 {[%emt 0:00:07]} 60. Nb6 {[%emt 0:00:27]} Bf4 {[%emt 0:00:41]} 61. Nd5 {[%emt 0:00:19]} Bg3 {[%emt 0:00:14]} 62. Nb6 {[%emt 0:00:42]} Bb8 {[%emt 0:02:52]} 63. Nd5 {[%emt 0:00:12]} Bd6 {[%emt 0:00:30]} 64. Kd4 {[%emt 0:00:20]} Kf5 {[%emt 0:00:48]} 65. Kc3 {[%emt 0:05:02]} Ke5 {[%emt 0:01:17]} 66. Ne3 {[%emt 0:03:10]} Ke4 {[%emt 0:00:08]} 67. Ng4 {[%emt 0:00:37]} Kf4 {[%emt 0:01:07]} 68. Nf2 {[%emt 0:00:42]} Be7 {[%emt 0:01:15]} 69. Nd3+ {[%emt 0:04:21]} Kg3 {[%emt 0:00:02]} 70. Nc5 {[%emt 0:00:07]} Kxg2 {[%emt 0:00:12]} 71. Nxa6 {[%emt 0:00:02]} Kxh3 {[%emt 0:01:27]} 72. Nc7 {[%emt 0:00:22]} Bf6+ {[%emt 0:00:36]} 73. Kd3 {[%emt 0:00:14]} Kg3 74. a6 h3 75. a7 1-0

[Event "IIFL Wealth 4th Mumbai Open"]
[Site "Mumbai"]
[Date "2018.12.30"]
[Round "1"]
[White "Rout, Yashita"]
[Black "Bhagyashree, Patil"]
[Result "0-1"]
[ECO "C97"]
[WhiteElo "1264"]
[BlackElo "1758"]
[Annotator "NA"]
[PlyCount "112"]
[EventDate "2018.12.30"]
[EventType "swiss"]
[EventCountry "IND"]
[SourceTitle "playchess.com"]
[Source "ChessBase"]
[SourceQuality "1"]
[TimeControl "40/5400+30:1800+30"]

1. e4 e5 2. Nf3 Nc6 3. Bb5 a6 4. Ba4 Nf6 5. O-O Be7 6. Re1 b5 7. Bb3 d6 8. c3 O-O 9. h3 Na5 10. Bc2 c5 11. d4 Qc7 12. Nbd2 Bb7 13. d5 Ne8 14. b3 Bc8 15. Bb2 g6 16. Nf1 f5 17. Ng3 f4 18. Nf1 g5 19. N1h2 h5 20. Nd2 Nf6 21. Qe2 Kf7 22. f3 Rg8 23. Kh1 g4 24. fxg4 hxg4 25. hxg4 Nxg4 26. Nxg4 Bxg4 27. Nf3 Rg6 28. Qd3 Rag8 29. Re2 Rh6+ 30. Kg1 c4 31. Qd2 Bxf3 32. Rf2 Bh5 33. b4 Nb7 34. a4 Bh4 35. Rff1 Qb6+ 36. Rf2 Bxf2+ 37. Qxf2 Qxf2+ 38. Kxf2 Rhg6 39. Rg1 Nd8 40. a5 Ke8 41. Bc1 Nf7 42. Bd2 Nh6 43. Kf1 R8g7 44. Kf2 Ng4+ 45. Kf1 Ne3+ 46. Bxe3 fxe3 47. g3 Rxg3 48. Rxg3 Rxg3 49. Bb1 e2+ 50. Kf2 Rg1 51. Kxg1 e1=Q+ 52. Kg2 Qe2+ 53. Kg3 Qf3+ 54. Kh2 Bg4 55. Bc2 Qf2+ 56. Kh1 Bf3# 0-1

[Event "IIFL Wealth 4th Mumbai Open"]
[Site "Mumbai"]
[Date "2018.12.30"]
[Round "1"]
[White "Shubham, Rahul Kamble"]
[Black "Sadbhav, Rautela"]
[Result "1/2-1/2"]
[ECO "B51"]
[WhiteElo "1243"]
[BlackElo "1746"]
[Annotator "NA"]
[PlyCount "111"]
[EventDate "2018.12.30"]
[EventType "swiss"]
[EventCountry "IND"]
[SourceTitle "playchess.com"]
[Source "ChessBase"]
[SourceQuality "1"]
[TimeControl "40/5400+30:1800+30"]

1. e4 {[%emt 0:00:00]} c5 {[%emt 0:00:00]} 2. Nf3 {[%emt 0:00:00]} d6 {[%emt 0:00:00]} 3. Bb5+ {[%emt 0:00:00]} Nc6 {[%emt 0:00:00]} 4. Bxc6+ {[%emt 0:00:13]} bxc6 {[%emt 0:00:03]} 5. O-O {[%emt 0:00:55]} Nf6 {[%emt 0:00:09]} 6. Nc3 {[%emt 0:00:57]} Bg4 {[%emt 0:00:48]} 7. h3 {[%emt 0:00:46]} Bh5 {[%emt 0:04:31]} 8. d3 {[%emt 0:00:39]} e6 {[%emt 0:00:56]} 9. Bg5 {[%emt 0:00:32]} Be7 {[%emt 0:00:23]} 10. g4 {[%emt 0:10:55]} Bg6 {[%emt 0:01:14]} 11. Nh4 {[%emt 0:12:16]} Nxe4 {[%emt 0:11:09]} 12. Bxe7 {[%emt 0:00:13]} Nxc3 {[%emt 0:00:19]} 13. Bxd8 {[%emt 0:01:28]} Nxd1 {[%emt 0:00:05]} 14. Bc7 {[%emt 0:01:20]} Nxb2 {[%emt 0:03:36]} 15. Bxd6 {[%emt 0:00:04]} Na4 {[%emt 0:00:28]} 16. Rab1 {[%emt 0:01:30]} Kd7 {[%emt 0:05:54]} 17. Bf4 {[%emt 0:04:13]} Nb6 {[%emt 0:01:53]} 18. a4 {[%emt 0:06:51]} Rhd8 {[%emt 0:18:49]} 19. a5 {[%emt 0:14:28]} Nd5 {[%emt 0:00:42]} 20. Bh2 {[%emt 0:10:23]} Nb4 {[%emt 0:17:11]} 21. Nxg6 {[%emt 0:07:11]} hxg6 {[%emt 0:00:21]} 22. d4 {[%emt 0:00:39]} Na6 {[%emt 0:08:23]} 23. c3 {[%emt 0:09:13]} Ke8 {[%emt 0:02:11]} 24. Rb7 {[%emt 0:02:05]} cxd4 {[%emt 0:01:36]} 25. cxd4 {[%emt 0:01:59]} Rxd4 {[%emt 0:00:31]} 26. Be5 {[%emt 0:01:20]} Rd5 {[%emt 0:05:42]} 27. Bxg7 {[%emt 0:00:15]} Rxa5 {[%emt 0:00:29]} 28. Bf6 {[%emt 0:00:24]} Rb5 {[%emt 0:00:51]} 29. Re7+ {[%emt 0:01:04]} Kf8 {[%emt 0:00:42]} 30. Ra1 {[%emt 0:01:12]} Nb4 {[%emt 0:06:19]} 31. Raxa7 {[%emt 0:02:31]} Rxa7 {[%emt 0:00:19]} 32. Rxa7 Rb8 {[%emt 0:00:45]} 33. Be5 {[%emt 0:04:22]} Rd8 {[%emt 0:02:07]} 34. Bf6 {[%emt 0:00:34]} Rb8 {[%emt 0:00:12]} 35. Be5 {[%emt 0:02:55]} Rd8 {[%emt 0:00:03]} 36. Bf6 {[%emt 0:00:03]} Rb8 {[%emt 0:00:02]} 37. Kg2 {[%emt 0:01:04]} Nd5 {[%emt 0:00:41]} 38. g5 {[%emt 0:00:06]} c5 {[%emt 0:02:13]} 39. Be5 {[%emt 0:01:41]} Rc8 {[%emt 0:00:57]} 40. Ra2 {[%emt 0:00:00]} c4 {[%emt 0:00:00]} 41. Rc2 {[%emt 0:01:36]} f6 {[%emt 0:02:29]} 42. gxf6 {[%emt 0:02:51]} Kf7 {[%emt 0:00:56]} 43. Kg3 {[%emt 0:02:26]} Nxf6 {[%emt 0:00:46]} 44. Bxf6 {[%emt 0:00:29]} Kxf6 {[%emt 0:00:02]} 45. f4 {[%emt 0:01:34]} Kf5 {[%emt 0:00:31]} 46. Rc3 {[%emt 0:00:51]} Ke4 {[%emt 0:01:00]} 47. Kg4 {[%emt 0:01:44]} Kd4 {[%emt 0:00:29]} 48. Rc1 {[%emt 0:00:09]} Kd3 {[%emt 0:00:38]} 49. Kg5 {[%emt 0:03:17]} Rf8 {[%emt 0:01:58]} 50. Rd1+ {[%emt 0:01:14]} Kc2 {[%emt 0:01:56]} 51. Rd6 {[%emt 0:00:22]} Rf5+ {[%emt 0:00:41]} 52. Kg4 {[%emt 0:02:07]} c3 {[%emt 0:01:40]} 53. Rxe6 {[%emt 0:00:10]} Kb1 {[%emt 0:01:07]} 54. Rxg6 {[%emt 0:01:14]} Rc5 {[%emt 0:00:07]} 55. Rb6+ {[%emt 0:00:40]} Kc1 {[%emt 0:05:28]} 56. Ra6 {[%emt 0:04:08]} 1/2-1/2

[Event "IIFL Wealth 4th Mumbai Open"]
[Site "Mumbai"]
[Date "2018.12.30"]
[Round "1"]
[White "Keerthana, B."]
[Black "Sawant, Akshay"]
[Result "0-1"]
[ECO "B20"]
[WhiteElo "1232"]
[BlackElo "1716"]
[Annotator "NA"]
[PlyCount "72"]
[EventDate "2018.12.30"]
[EventType "swiss"]
[EventCountry "IND"]
[SourceTitle "playchess.com"]
[Source "ChessBase"]
[SourceQuality "1"]
[TimeControl "40/5400+30:1800+30"]

1. e4 c5 2. d3 e6 3. Nd2 Nc6 4. Ngf3 Qc7 5. g3 Nf6 6. Bg2 Be7 7. O-O O-O 8. Re1 d5 9. e5 Nd7 10. Qe2 b5 11. c3 Rb8 12. Nf1 a5 13. h4 Ba6 14. Bf4 b4 15. h5 Rb6 16. Rad1 bxc3 17. bxc3 Rfb8 18. Rd2 a4 19. h6 g6 20. N1h2 a3 21. Ng4 Rb2 22. Red1 Rxd2 23. Rxd2 Nb6 24. Qe3 Na4 25. Nf6+ Kh8 26. Bg5 Nxc3 27. Qf4 Rb4 28. Qe3 Rb2 29. Ne8 Bxg5 30. Qxg5 Qe7 31. Nd6 Qxg5 32. Nxf7+ Kg8 33. N7xg5 Rxd2 34. Nxd2 Nd4 35. Bh3 Nxa2 36. Nxe6 Nc1 0-1

[Event "IIFL Wealth 4th Mumbai Open"]
[Site "Mumbai"]
[Date "2018.12.30"]
[Round "1"]
[White "Bamboat, Hrrehan"]
[Black "Deepak, Rai"]
[Result "0-1"]
[ECO "B07"]
[WhiteElo "1231"]
[BlackElo "1710"]
[Annotator "NA"]
[PlyCount "122"]
[EventDate "2018.12.30"]
[EventType "swiss"]
[EventCountry "IND"]
[SourceTitle "playchess.com"]
[Source "ChessBase"]
[SourceQuality "1"]
[TimeControl "40/5400+30:1800+30"]

1. e4 {[%emt 0:00:00]} d6 {[%emt 0:00:00]} 2. d4 {[%emt 0:00:22]} Nf6 {[%emt 0:00:00]} 3. Nc3 {[%emt 0:00:23]} Nbd7 {[%emt 0:00:15]} 4. Bc4 {[%emt 0:01:26]} e5 {[%emt 0:00:47]} 5. Nge2 {[%emt 0:03:44]} c6 {[%emt 0:01:47]} 6. a4 {[%emt 0:02:46]} a5 {[%emt 0:03:38]} 7. O-O {[%emt 0:03:16]} Be7 {[%emt 0:06:08]} 8. h3 {[%emt 0:02:29]} Qc7 {[%emt 0:03:31]} 9. Be3 {[%emt 0:02:10]} Nf8 {[%emt 0:06:50]} 10. f4 {[%emt 0:06:05]} Be6 {[%emt 0:02:23]} 11. Bd3 {[%emt 0:03:06]} Rd8 {[%emt 0:10:35]} 12. Qe1 {[%emt 0:02:47]} exf4 {[%emt 0:05:52]} 13. Nxf4 {[%emt 0:01:47]} Bc8 {[%emt 0:03:37]} 14. Qg3 {[%emt 0:03:13]} Ng6 {[%emt 0:01:16]} 15. Rae1 {[%emt 0:01:15]} Nxf4 {[%emt 0:04:08]} 16. Qxf4 {[%emt 0:01:39]} O-O {[%emt 0:01:44]} 17. e5 {[%emt 0:03:22]} Nd7 {[%emt 0:01:34]} 18. Qg3 {[%emt 0:06:47]} Kh8 {[%emt 0:03:56]} 19. Bf4 {[%emt 0:04:09]} dxe5 {[%emt 0:01:02]} 20. dxe5 {[%emt 0:01:12]} Qb6+ {[%emt 0:02:27]} 21. Be3 {[%emt 0:00:46]} Qxb2 {[%emt 0:06:44]} 22. Bd4 {[%emt 0:01:58]} Bc5 {[%emt 0:02:18]} 23. Qh4 {[%emt 0:02:05]} Bxd4+ {[%emt 0:02:51]} 24. Qxd4 {[%emt 0:00:02]} Qb4 {[%emt 0:05:11]} 25. Rf4 {[%emt 0:02:29]} Qxd4+ {[%emt 0:00:47]} 26. Rxd4 {[%emt 0:00:07]} Nc5 {[%emt 0:00:34]} 27. Rxd8 {[%emt 0:00:57]} Rxd8 {[%emt 0:00:08]} 28. Bc4 {[%emt 0:01:08]} Kg8 {[%emt 0:00:52]} 29. Rf1 {[%emt 0:00:39]} Be6 {[%emt 0:00:19]} 30. Be2 {[%emt 0:01:16]} Rd4 {[%emt 0:00:57]} 31. Rb1 {[%emt 0:01:08]} Kf8 {[%emt 0:00:32]} 32. Kf1 {[%emt 0:00:30]} Bc4 {[%emt 0:02:17]} 33. Ke1 {[%emt 0:00:52]} Bxe2 {[%emt 0:00:16]} 34. Kxe2 {[%emt 0:00:15]} Ke7 {[%emt 0:00:21]} 35. Ke3 {[%emt 0:00:43]} Rc4 {[%emt 0:00:54]} 36. Kd2 {[%emt 0:00:39]} Ke6 {[%emt 0:00:15]} 37. Re1 {[%emt 0:00:10]} h6 {[%emt 0:01:19]} 38. Re3 {[%emt 0:00:30]} Rd4+ {[%emt 0:03:34]} 39. Ke2 {[%emt 0:00:14]} Rc4 {[%emt 0:01:09]} 40. Kd2 {[%emt 0:00:00]} Nxa4 {[%emt 0:00:00]} 41. Nxa4 {[%emt 0:00:53]} Rxa4 {[%emt 0:00:28]} 42. Ke2 {[%emt 0:00:56]} Rc4 {[%emt 0:00:18]} 43. Kd2 {[%emt 0:00:17]} b5 {[%emt 0:00:33]} 44. Kc1 {[%emt 0:00:19]} Rc5 {[%emt 0:01:09]} 45. Kb2 {[%emt 0:00:16]} Rxe5 {[%emt 0:00:09]} 46. Rg3 {[%emt 0:00:13]} g6 {[%emt 0:00:07]} 47. Kb3 {[%emt 0:00:11]} c5 {[%emt 0:00:10]} 48. Kb2 {[%emt 0:00:10]} a4 {[%emt 0:00:55]} 49. Kb1 {[%emt 0:00:16]} b4 {[%emt 0:00:07]} 50. Kc1 {[%emt 0:00:11]} c4 {[%emt 0:00:25]} 51. Kb1 {[%emt 0:00:35]} Kd5 {[%emt 0:00:47]} 52. Rf3 {[%emt 0:00:17]} f5 {[%emt 0:00:09]} 53. Kc1 {[%emt 0:00:22]} b3 {[%emt 0:01:20]} 54. cxb3 {[%emt 0:00:34]} axb3 {[%emt 0:00:08]} 55. Rf2 {[%emt 0:00:22]} c3 {[%emt 0:00:12]} 56. Kd1 {[%emt 0:00:20]} Kc4 {[%emt 0:00:25]} 57. Rf4+ {[%emt 0:00:18]} Re4 {[%emt 0:00:16]} 58. Rf3 {[%emt 0:00:07]} b2 {[%emt 0:00:40]} 59. Kc2 {[%emt 0:00:05]} Re2+ {[%emt 0:00:06]} 60. Kb1 {[%emt 0:00:12]} Kb3 {[%emt 0:00:18]} 61. g3 {[%emt 0:00:23]} Re1# {[%emt 0:00:17]} 0-1

[Event "IIFL Wealth 4th Mumbai Open"]
[Site "Mumbai"]
[Date "2018.12.30"]
[Round "1"]
[White "Vegi, Bhavishnu Sai Sivaj"]
[Black "Joglekar, Abhijit"]
[Result "0-1"]
[ECO "C77"]
[WhiteElo "1225"]
[BlackElo "1692"]
[Annotator "NA"]
[PlyCount "108"]
[EventDate "2018.12.30"]
[EventType "swiss"]
[EventCountry "IND"]
[SourceTitle "playchess.com"]
[Source "ChessBase"]
[SourceQuality "1"]
[TimeControl "40/5400+30:1800+30"]

1. e4 e5 2. Nf3 Nc6 3. Bb5 a6 4. Ba4 Nf6 5. Bxc6 dxc6 6. Qe2 Bd6 7. d3 h6 8. Nbd2 Bg4 9. Nc4 Qe7 10. Bd2 O-O 11. O-O-O a5 12. h3 Bxf3 13. gxf3 b5 14. Ne3 g6 15. Rhg1 Kh7 16. Ng4 Nxg4 17. hxg4 Kg7 18. Rh1 Rh8 19. Rh3 Qe6 20. Kb1 c5 21. Rdh1 g5 22. Qf1 a4 23. Rh5 Be7 24. Qh3 b4 25. Qf1 Rab8 26. Bc1 b3 27. cxb3 axb3 28. a3 Rbd8 29. Qe2 Qa6 30. Rd1 Rd7 31. Rh3 Rhd8 32. Rhh1 Rxd3 33. Rxd3 Rxd3 34. Rd1 c4 35. Rxd3 cxd3 36. Qd2 Qc4 37. Qc3 Qxc3 38. bxc3 Bxa3 39. Bd2 Kf6 40. Ka1 Ke6 41. Kb1 Kd6 42. Ka1 Kc5 43. Kb1 Kc4 44. Ka1 Bc5 45. Kb2 Bxf2 46. Kc1 Bg3 47. Kb2 Bf4 48. Bxf4 gxf4 49. Kc1 Kxc3 50. Kd1 b2 51. Ke1 b1=Q+ 52. Kf2 Qc2+ 53. Kf1 Qh2 54. Ke1 Qe2# 0-1